fUST/lending_fUST_20240618
["ID","MTS","AMOUNT","RATE_DAILY","PERIOD"]
[329822691,1718704150147,-275.69069542,0.00016816,2]
[329822692,1718704150167,-6911.40385908,0.00016817,2]
[329822693,1718704162108,-19203.80988615,0.00016817,2]
[329822694,1718704162131,-7660.7165377,0.00016818,2]
[329822696,1718704228197,500.0,0.00016556,2]
[329822705,1718704232710,-645.16613554,0.00016934,2]
[329822718,1718704232721,-952.16083732,0.00017209,2]
[329822719,1718704232899,-500.0,0.00017313,2]
[329822720,1718704232909,-500.0,0.00017313,2]
[329822721,1718704232920,-500.0,0.00017313,2]
[329822722,1718704232930,-500.0,0.00017313,2]
[329822723,1718704232939,-223.04920912,0.00017313,2]
[329822724,1718704232949,-500.0,0.00017313,2]
[329822725,1718704232958,-500.0,0.00017313,2]
[329822726,1718704232968,-508.64165293,0.00017313,2]
[329822727,1718704232977,-175.04047696,0.00017313,2]
[329822728,1718704232986,-515.45004743,0.00017313,2]
[329822729,1718704232995,-500.0,0.00017587,2]
[329822730,1718704233005,-500.0,0.00017587,2]
[329822731,1718704233014,-500.0,0.00017587,2]
[329822732,1718704233024,-500.0,0.00017587,2]
[329822733,1718704233034,-500.0,0.00017622,2]
[329822734,1718704233043,-500.0,0.00017622,2]
[329822735,1718704233053,-440.32879995,0.00017622,2]
[329822736,1718704233062,-505.64322017,0.00017622,2]
[329822737,1718704233071,-500.49382646,0.00017622,2]
[329822738,1718704233080,-500.0,0.00017861,2]
[329822739,1718704233090,-606.13,0.00017861,2]
[329822740,1718704233099,-500.0,0.00017861,2]
[329822741,1718704233109,-500.0,0.00017881,2]
[329822742,1718704233120,-500.0,0.00017881,2]
[329822743,1718704233129,-508.29386559,0.00017881,2]
[329822744,1718704233139,-500.0,0.00017881,2]
[329822745,1718704233149,-504.78821948,0.00017881,2]
[329822746,1718704233158,-500.0,0.00017881,2]
[329822747,1718704233168,-500.0,0.00017881,2]
[329822748,1718704233178,-500.0,0.00017881,2]
[329822749,1718704233187,-508.07284642,0.00017881,2]
[329822750,1718704233197,-516.86993245,0.00017881,2]
[329822751,1718704233207,-516.4804467,0.00017881,2]
[329822752,1718704233216,-502.1643755,0.00017882,2]
[329822753,1718704233226,-502.46715849,0.00017882,2]
[329822754,1718704233235,-503.36338985,0.00017882,2]
[329822755,1718704233244,-647.58976464,0.00018055,2]
[329822756,1718704233253,-500.0,0.00018135,2]
[329822757,1718704233262,-500.0,0.00018135,2]
[329822758,1718704233272,-500.0,0.00018155,2]
[329822759,1718704233281,-500.0,0.00018409,2]
[329822760,1718704233290,-500.0,0.00018409,2]
[329822761,1718704233300,-504.7690941,0.00018427,2]
[329822762,1718704233309,-508.18740871,0.00018428,2]
[329822763,1718704233318,-506.57480872,0.00018428,2]
[329822764,1718704233327,-505.70979666,0.00018428,2]
[329822765,1718704233337,-507.611095,0.00018428,2]
[329822766,1718704233347,-500.0,0.00018428,2]
[329822767,1718704233358,-500.0,0.00018428,2]
[329822768,1718704233369,-515.90774331,0.00018428,2]
[329822769,1718704233379,-540.84555788,0.00018428,2]
[329822770,1718704233392,-506.67505619,0.00018428,2]
[329822771,1718704233402,-500.0,0.00018428,2]
[329822772,1718704233411,-338.81292337,0.00018428,2]
[329822773,1718704233421,-500.0,0.00018428,2]
[329822774,1718704233430,-504.09949621,0.00018428,2]
[329822775,1718704233441,-500.0,0.00018428,2]
[329822776,1718704233450,-500.0,0.00018428,2]
[329822777,1718704233459,-504.07315997,0.00018428,2]
[329822778,1718704233469,-508.91261558,0.00018428,2]
[329822779,1718704233479,-1446.51,0.00018428,2]
[329822780,1718704233488,-500.0,0.00018428,2]
[329822781,1718704233498,-500.0,0.00018428,2]
[329822782,1718704233509,-500.0,0.00018428,2]
[329822783,1718704233522,-214.02554334,0.00018428,2]
[329822784,1718704233535,-285.97445666,0.00018428,2]
[329822785,1718704233545,-182.252972,0.00018428,2]
[329822786,1718704233554,-31.57257134,0.00018428,2]
[329822843,1718704243883,-472.09568198,0.00018428,2]
[329822845,1718704243893,-512.66993647,0.00018428,2]
[329822847,1718704243903,-500.0,0.00018428,2]
[329822849,1718704243912,-17.34594405,0.00018428,2]
[329822856,1718704246856,-343.94057279,0.00017586,2]
[329822857,1718704246868,-156.05942721,0.00017586,2]
[329822858,1718704246878,-500.0,0.0001786,2]
[329822859,1718704246889,-355.52558066,0.00018428,2]
[329822860,1718704246899,-505.6549058,0.00018428,2]
[329822861,1718704246909,-500.0,0.00018428,2]
[329822862,1718704246929,-313.89081301,0.00018428,2]
[329822863,1718704246939,-500.0,0.00018683,2]
[329822864,1718704246949,-500.0,0.00018683,2]
[329822865,1718704246959,-244.31,0.00018702,2]
[329822866,1718704246969,-500.0,0.00018702,2]
[329822867,1718704246979,-1446.51,0.00018702,2]
[329822868,1718704246988,-218.62314558,0.00018702,2]
[329822869,1718704246998,-500.0,0.00018702,2]
[329822870,1718704247008,-645.04,0.00018702,2]
[329822871,1718704247018,-500.0,0.00018702,2]
[329822872,1718704247028,-155.01659621,0.000189,2]
[329822873,1718704247037,-891.90204003,0.000189,2]
[329822874,1718704247047,-500.0,0.00018957,2]
[329822875,1718704247056,-500.0,0.00018957,2]
[329822876,1718704247066,-500.0,0.00018976,2]
[329822877,1718704247076,-1446.51,0.00018976,2]
[329822878,1718704247085,-500.0,0.00018976,2]
[329822879,1718704247095,-500.0,0.00018976,2]
[329822880,1718704247105,-5921.46835235,0.00019,2]
[329822881,1718704247115,-151.261544,0.00019,2]
[329822882,1718704247124,-151.0,0.00019,2]
[329822883,1718704247134,-151.0,0.00019,2]
[329822884,1718704247145,-152.293039,0.00019,2]
[329822885,1718704247155,-155.0165962,0.0001915,2]
[329822886,1718704247164,-1089.258727,0.00019178,2]
[329822887,1718704247173,-1089.258727,0.00019178,2]
[329822888,1718704247183,-167.079376,0.00019178,2]
[329822889,1718704247193,-150.0,0.00019207,2]
[329822890,1718704247203,-500.0,0.00019231,2]
[329822891,1718704247212,-500.0,0.00019231,2]
[329822892,1718704247221,-500.0,0.0001925,2]
[329822893,1718704247231,-1446.51,0.0001925,2]
[329822894,1718704247240,-151.436971,0.0001925,2]
[329822895,1718704247250,-632.356726,0.0001925,2]
[329822896,1718704247259,-1434.654062,0.0001925,2]
[329822897,1718704247270,-151.0,0.0001925,2]
[329822898,1718704247279,-632.356726,0.0001925,2]
[329822899,1718704247288,-1434.654062,0.0001925,2]
[329822900,1718704247298,-151.0,0.0001925,2]
[329822901,1718704247307,-151.0,0.0001925,2]
[329822902,1718704247317,-1653.175392,0.0001925,2]
[329822903,1718704247326,-1653.175392,0.0001925,2]
[329822904,1718704247336,-500.0,0.0001925,2]
[329822905,1718704247345,-151.213074,0.0001925,2]
[329822906,1718704247356,-156.075696,0.0001925,2]
[329822907,1718704247367,-151.0,0.0001925,2]
[329822908,1718704247377,-151.0,0.0001925,2]
[329822909,1718704247386,-500.0,0.0001925,2]
[329822910,1718704247395,-151.0,0.00019251,2]
[329822911,1718704247406,-151.0,0.00019251,2]
[329822912,1718704247416,-151.0,0.00019251,2]
[329822913,1718704247426,-151.0,0.00019251,2]
[329822914,1718704247435,-151.0,0.00019251,2]
[329822915,1718704247447,-155.0165962,0.000194,2]
[329822916,1718704247458,-5271.96670823,0.00019404,2]
[329822917,1718704247467,-155.013052,0.00019495,2]
[329822918,1718704247477,-153.597451,0.00019495,2]
[329822919,1718704247486,-1089.258727,0.00019495,2]
[329822920,1718704247495,-1089.258727,0.00019495,2]
[329822921,1718704247505,-154.922508,0.00019495,2]
[329822922,1718704247514,-151.0,0.00019495,2]
[329822923,1718704247523,-287.684324,0.00019495,2]
[329822924,1718704247532,-152.772268,0.00019495,2]
[329822925,1718704247541,-151.0,0.00019495,2]
[329822926,1718704247551,-632.356726,0.00019505,2]
[329822927,1718704247560,-1434.654062,0.00019505,2]
[329822928,1718704247570,-151.0,0.00019505,2]
[329822929,1718704247580,-632.356726,0.00019505,2]
[329822930,1718704247590,-1434.654062,0.00019505,2]
[329822931,1718704247599,-151.0,0.00019505,2]
[329822932,1718704247608,-151.0,0.00019505,2]
[329822933,1718704247618,-1653.175392,0.00019505,2]
[329822934,1718704247628,-1653.175392,0.00019505,2]
[329822935,1718704247639,-500.0,0.00019505,2]
[329822936,1718704247648,-637.10284575,0.00019505,2]
[329822937,1718704247659,-151.0,0.00019505,2]
[329822938,1718704247669,-500.0,0.00019524,2]
[329822939,1718704247678,-151.0,0.00019524,2]
[329822940,1718704247688,-151.286273,0.00019524,2]
[329822941,1718704247697,-1000.0,0.00019524,2]
[329822942,1718704247707,-894.91731155,0.00019524,2]
[329822943,1718704247802,-105.08268845,0.00019524,2]
[329822944,1718704247812,-1000.0,0.00019524,2]
[329822945,1718704247822,-1000.0,0.00019524,2]
[329822946,1718704247832,-1000.0,0.00019524,2]
[329822947,1718704247842,-1000.0,0.00019524,2]
[329822948,1718704247852,-953.58086619,0.00019524,2]
[329822949,1718704247865,-46.41913381,0.00019524,2]
[329822950,1718704247875,-1000.0,0.00019524,2]
[329822951,1718704247888,-428.81141804,0.00019524,2]
[329822952,1718704261702,4565.14799825,0.00016369,2]
[329822954,1718705158163,-463.24894805,0.00015232,2]
[329822955,1718705250102,-2477.72614275,0.0001523,2]
[329822956,1718705250123,-288.0,0.0001523,2]
[329822957,1718705250145,-242.764299,0.00015233,2]
[329822958,1718705250167,-318.6149584,0.00015233,2]
[329822959,1718705250186,-311.5532546,0.00015367,2]
[329822960,1718705250207,-3255.22311341,0.0001604,2]
[329822961,1718705256066,154.81422293,9.999e-05,2]
[329822969,1718705347109,-269.8328044,0.00015227,2]
[329822970,1718705347131,-692.54165185,0.00015228,2]
[329822971,1718705347153,-7927.49807908,0.00016039,2]
[329822972,1718705347175,-4749.32886726,0.0001604,2]
[329822973,1718705353201,-767.78998995,0.00016266,2]
[329822974,1718705353222,-1976.78044713,0.00016366,2]
[329822975,1718705353242,-199.88497503,0.00016366,2]
[329822976,1718705354144,-500.0,0.00017565,2]
[329822977,1718705354167,-500.0,0.00017565,2]
[329822978,1718705354190,-500.0,0.00017565,2]
[329822979,1718705354211,-500.61571525,0.00017565,2]
[329822980,1718705354233,-500.0,0.00017585,2]
[329822981,1718705354254,-505.17879002,0.00017585,2]
[329822982,1718705354277,-500.0,0.00017585,2]
[329822983,1718705354298,-500.0,0.00017585,2]
[329822984,1718705354320,-605.79575409,0.00017585,2]
[329822985,1718705354342,-500.0,0.00017585,2]
[329822986,1718705354364,-505.94440019,0.00017585,2]
[329822987,1718705354386,-500.0,0.00017585,2]
[329822988,1718705354408,-500.0,0.00017585,2]
[329822989,1718705354432,-500.0,0.00017585,2]
[329822990,1718705354457,-363.00742695,0.00017585,2]
[329822991,1718705354772,5132.0035704,0.00016551,2]
[329823018,1718705432882,-736.90333136,0.0001655,2]
[329823200,1718705441444,-4791.04839098,0.0001655,2]
[329823202,1718705441454,-3676.5138034,0.00016551,2]
[329823203,1718705441464,-136.99257305,0.00017585,2]
[329823204,1718705441473,-500.0,0.00017585,2]
[329823206,1718705441483,-532.48169268,0.00017585,2]
[329823208,1718705441492,-500.0,0.00017585,2]
[329823210,1718705441502,-500.0,0.00017586,2]
[329823211,1718705441511,-500.0,0.00017586,2]
[329823212,1718705441520,-500.0,0.00017586,2]
[329823213,1718705441530,-500.0,0.00017586,2]
[329823214,1718705441539,-500.0,0.00017586,2]
[329823215,1718705441549,-500.0,0.00017586,2]
[329823216,1718705441559,-500.0,0.00017586,2]
[329823217,1718705441569,-500.0,0.00017586,2]
[329823218,1718705441579,-500.0,0.00017586,2]
[329823219,1718705441588,-623.55,0.00017586,2]
[329823220,1718705441598,-528.45777516,0.00017621,2]
[329823221,1718705441609,-342.74299605,0.00017621,2]
[329823222,1718705441619,-500.0,0.00017621,2]
[329823223,1718705441628,-503.2954803,0.00017621,2]
[329823224,1718705441640,-500.0,0.00017621,2]
[329823225,1718705441650,-503.79734809,0.00017621,2]
[329823226,1718705441659,-501.86109902,0.00017621,2]
[329823227,1718705441669,-500.0,0.00017621,2]
[329823228,1718705441679,-500.0,0.00017621,2]
[329823229,1718705441688,-500.0,0.00017621,2]
[329823230,1718705441698,-500.0,0.00017621,2]
[329823231,1718705441707,-507.88639297,0.00017621,2]
[329823232,1718705441717,-513.57525378,0.00017621,2]
[329823233,1718705441727,-500.0,0.00017621,2]
[329823234,1718705441736,-503.40032894,0.00017621,2]
[329823235,1718705441745,-500.0,0.00017621,2]
[329823236,1718705441757,-508.95154563,0.00017621,2]
[329823237,1718705441769,-500.0,0.00017621,2]
[329823238,1718705441778,-500.0,0.00017621,2]
[329823239,1718705441794,-517.85293257,0.00017621,2]
[329823240,1718705441814,-500.0,0.00017621,2]
[329823241,1718705441824,-500.0,0.00017621,2]
[329823242,1718705441836,-500.0,0.00017621,2]
[329823243,1718705441845,-168.74529089,0.00017735,2]
[329823244,1718705441855,-1500.41840367,0.00017833,2]
[329823245,1718705441865,-275.82048278,0.00017833,2]
[329823246,1718705441875,-815.35981916,0.00017834,2]
[329823247,1718705441887,-1356.29031401,0.00017835,2]
[329823248,1718705441896,-258.80025544,0.00017835,2]
[329823249,1718705441906,-8906.33380176,0.00017835,2]
[329823250,1718705441915,-1585.40385561,0.00017835,2]
[329823251,1718705441925,-3976.58537345,0.00017836,2]
[329823252,1718705441935,-500.0,0.00017859,2]
[329823253,1718705441945,-500.0,0.0001786,2]
[329823254,1718705441954,-500.0,0.00017895,2]
[329823255,1718705441964,-469.3845729,0.00017895,2]
[329823256,1718705441974,-500.0,0.00017895,2]
[329823257,1718705441983,-500.0,0.00017895,2]
[329823258,1718705441993,-500.0,0.00017895,2]
[329823259,1718705442002,-500.0,0.00017895,2]
[329823260,1718705442011,-170.93233882,0.00018133,2]
[329823261,1718705442024,-329.06766118,0.00018133,2]
[329823262,1718705442034,-500.0,0.00018169,2]
[329823263,1718705442043,-500.0,0.00018169,2]
[329823264,1718705442052,-168.74529087,0.00018276,2]
[329823265,1718705442061,-500.0,0.00018407,2]
[329823266,1718705442071,-500.0,0.00018427,2]
[329823267,1718705442080,-500.0,0.00018443,2]
[329823268,1718705442090,-609.36562044,0.00018443,2]
[329823269,1718705442099,-500.0,0.00018701,2]
[329823270,1718705442108,-500.0,0.00018717,2]
[329823271,1718705442117,-168.74529087,0.00018818,2]
[329823272,1718705442127,-594.60136002,0.000189,2]
[329823273,1718705442138,-500.0,0.00018975,2]
[329823274,1718705442147,-481.62665714,0.00018991,2]
[329823275,1718705442160,-18.37334286,0.00018991,2]
[329823276,1718705442169,-500.0,0.00018999,2]
[329823277,1718705442178,-5921.46835235,0.00019,2]
[329823278,1718705442187,-500.0,0.00019249,2]
[329823279,1718705442197,-500.0,0.00019265,2]
[329823280,1718705442206,-168.74529087,0.00019359,2]
[329823281,1718705442215,-500.0,0.00019402,2]
[329823282,1718705442224,-151.0,0.00019403,2]
[329823283,1718705442235,-151.0,0.00019403,2]
[329823284,1718705442244,-41.19948533,0.00019403,2]
[329823318,1718705444470,-500.0,0.00018681,2]
[329823320,1718705444480,-500.0,0.00018955,2]
[329823322,1718705444490,-500.0,0.00019229,2]
[329823324,1718705444500,-109.80051467,0.00019403,2]
[329823326,1718705444509,-152.225284,0.00019403,2]
[329823328,1718705444519,-151.0,0.00019403,2]
[329823330,1718705444528,-151.0,0.00019403,2]
[329823331,1718705444537,-151.0,0.00019403,2]
[329823332,1718705444546,-151.504326,0.00019403,2]
[329823333,1718705444555,-871.406982,0.00019403,2]
[329823334,1718705444564,-871.406982,0.00019403,2]
[329823335,1718705444573,-871.406982,0.00019403,2]
[329823336,1718705444582,-871.406982,0.00019403,2]
[329823337,1718705444591,-151.0,0.00019403,2]
[329823338,1718705444600,-151.0,0.00019403,2]
[329823339,1718705444609,-151.0,0.00019403,2]
[329823340,1718705444618,-1322.540314,0.00019403,2]
[329823341,1718705444628,-1322.540314,0.00019403,2]
[329823342,1718705444639,-1322.540314,0.00019403,2]
[329823343,1718705444649,-343.88264687,0.00019403,2]
[329823344,1718705444662,-978.65766713,0.00019403,2]
[329823345,1718705444671,-1322.540314,0.00019403,2]
[329823346,1718705444680,-1322.540314,0.00019403,2]
[329823347,1718705444689,-1205.42,0.00019403,2]
[329823348,1718705444699,-505.885381,0.00019403,2]
[329823349,1718705444708,-505.885381,0.00019403,2]
[329823350,1718705444717,-505.885381,0.00019403,2]
[329823351,1718705444726,-505.885381,0.00019403,2]
[329823352,1718705444735,-505.885381,0.00019403,2]
[329823353,1718705444744,-505.885381,0.00019403,2]
[329823354,1718705444754,-151.0,0.00019403,2]
[329823355,1718705444768,-155.205957,0.00019403,2]
[329823356,1718705444777,-151.0,0.00019403,2]
[329823358,1718705444786,-151.0,0.00019403,2]
[329823360,1718705444795,-229.48806,0.00019403,2]
[329823362,1718705444806,-151.0,0.00019403,2]
[329823364,1718705444816,-151.0,0.00019403,2]
[329823366,1718705444825,-151.0,0.00019403,2]
[329823368,1718705444835,-151.0,0.00019403,2]
[329823370,1718705444846,-151.0,0.00019403,2]
[329823372,1718705444857,-151.0,0.00019403,2]
[329823374,1718705444866,-151.0,0.00019403,2]
[329823376,1718705444875,-209.026161,0.00019403,2]
[329823378,1718705444886,-151.0,0.00019403,2]
[329823380,1718705444896,-151.0,0.00019403,2]
[329823382,1718705444905,-1000.0,0.00019403,2]
[329823384,1718705444914,-151.0,0.00019403,2]
[329823386,1718705444923,-151.0,0.00019403,2]
[329823388,1718705444932,-1000.0,0.00019403,2]
[329823390,1718705444942,-1000.0,0.00019403,2]
[329823392,1718705444951,-1000.0,0.00019403,2]
[329823394,1718705444960,-1000.0,0.00019403,2]
[329823396,1718705444969,-1000.0,0.00019403,2]
[329823398,1718705444979,-1000.0,0.00019403,2]
[329823399,1718705444988,-1000.0,0.00019403,2]
[329823401,1718705444997,-1000.0,0.00019403,2]
[329823403,1718705445007,-1000.0,0.00019403,2]
[329823405,1718705445016,-1000.0,0.00019403,2]
[329823407,1718705445026,-1000.0,0.00019403,2]
[329823410,1718705445035,-1000.0,0.00019403,2]
[329823411,1718705445045,-1000.0,0.00019403,2]
[329823413,1718705445055,-1000.0,0.00019403,2]
[329823416,1718705445064,-1000.0,0.00019403,2]
[329823418,1718705445074,-1000.0,0.00019403,2]
[329823419,1718705445083,-1000.0,0.00019403,2]
[329823422,1718705445092,-1000.0,0.00019403,2]
[329823424,1718705445102,-1000.0,0.00019403,2]
[329823426,1718705445111,-1000.0,0.00019403,2]
[329823428,1718705445120,-1000.0,0.00019403,2]
[329823430,1718705445130,-1000.0,0.00019403,2]
[329823431,1718705445140,-1000.0,0.00019403,2]
[329823433,1718705445150,-1000.0,0.00019403,2]
[329823435,1718705445160,-1000.0,0.00019403,2]
[329823437,1718705445170,-1000.0,0.00019403,2]
[329823440,1718705445179,-1000.0,0.00019403,2]
[329823441,1718705445188,-1000.0,0.00019403,2]
[329823443,1718705445197,-1147.72325,0.00019403,2]
[329823445,1718705445207,-1147.72325,0.00019403,2]
[329823458,1718705445318,-1000.0,0.00019403,2]
[329823460,1718705445328,-1000.0,0.00019403,2]
[329823463,1718705445338,-1000.0,0.00019403,2]
[329823465,1718705445348,-1000.0,0.00019403,2]
[329823467,1718705445358,-1000.0,0.00019403,2]
[329823468,1718705445367,-1000.0,0.00019403,2]
[329823470,1718705445377,-1000.0,0.00019403,2]
[329823472,1718705445387,-1000.0,0.00019403,2]
[329823474,1718705445397,-1000.0,0.00019403,2]
[329823476,1718705445406,-1000.0,0.00019403,2]
[329823478,1718705445416,-1000.0,0.00019403,2]
[329823481,1718705445425,-1000.0,0.00019403,2]
[329823482,1718705445435,-1000.0,0.00019403,2]
[329823485,1718705445445,-1000.0,0.00019403,2]
[329823487,1718705445454,-1000.0,0.00019403,2]
[329823489,1718705445464,-1000.0,0.00019403,2]
[329823491,1718705445473,-1107.158952,0.00019403,2]
[329823493,1718705445482,-1147.72325,0.00019403,2]
[329823495,1718705445492,-1147.72325,0.00019403,2]
[329823496,1718705445501,-5271.96670823,0.00019415,2]
[329823498,1718705445510,-151.0,0.00019428,2]
[329823500,1718705445519,-153.848168,0.00019428,2]
[329823502,1718705445529,-151.0,0.00019428,2]
[329823504,1718705445538,-151.0,0.00019428,2]
[329823506,1718705445548,-151.0,0.00019428,2]
[329823508,1718705445558,-151.0,0.00019428,2]
[329823510,1718705445567,-1147.72325,0.00019428,2]
[329823513,1718705445576,-1147.72325,0.00019428,2]
[329823514,1718705445585,-500.0,0.00019503,2]
[329823516,1718705445595,-13419.60500977,0.00019522,2]
[329823519,1718705445605,-151.0,0.00019522,2]
[329823520,1718705445614,-151.0,0.00019522,2]
[329823523,1718705445624,-151.0,0.00019522,2]
[329823525,1718705445633,-1322.540314,0.00019522,2]
[329823527,1718705445644,-1322.540314,0.00019522,2]
[329823529,1718705445653,-500.0,0.00019523,2]
[329823531,1718705445662,-871.406982,0.00019524,2]
[329823532,1718705445671,-871.406982,0.00019524,2]
[329823534,1718705445680,-505.885381,0.00019524,2]
[329823536,1718705445689,-505.885381,0.00019524,2]
[329823538,1718705445698,-151.0,0.00019524,2]
[329823540,1718705445707,-151.0,0.00019524,2]
[329823542,1718705445716,-191.872393,0.00019524,2]
[329823544,1718705445725,-151.0,0.00019524,2]
[329823546,1718705445735,-151.0,0.00019524,2]
[329823548,1718705445744,-1147.72325,0.00019524,2]
[329823550,1718705445755,-1147.72325,0.00019524,2]
[329823552,1718705445768,-500.0,0.00019539,2]
[329823554,1718705445777,-151.0,0.00019593,2]
[329823556,1718705445787,-151.0,0.00019593,2]
[329823558,1718705445796,-1205.42,0.00019677,2]
[329823560,1718705445806,-500.0,0.00019777,2]
[329823562,1718705445816,-500.0,0.00019797,2]
[329823564,1718705445826,-158.23409006,0.00019798,3]
[329823566,1718705445835,-871.406982,0.00019798,2]
[329823568,1718705445848,-871.406982,0.00019798,2]
[329823570,1718705445858,-151.0,0.00019798,2]
[329823572,1718705445867,-1322.540314,0.00019798,2]
[329823574,1718705445876,-1322.540314,0.00019798,2]
[329823576,1718705445886,-160.30556694,0.00019798,2]
[329823578,1718705445897,-500.0,0.00019813,2]
[329823580,1718705445907,-189.67053427,0.00019897,2]
[329823582,1718705445916,-213.83205145,0.00019897,7]
[329823584,1718705445926,-933.0558972,0.00019897,2]
[329823586,1718705445937,-306.78091198,0.00019898,2]
[329823588,1718705445947,-33261.0297478,0.00019898,2]
[329823590,1718705445956,-151.0,0.00019898,2]
[329823592,1718705445966,-151.0,0.00019898,2]
[329823594,1718705445975,-871.406982,0.00019898,2]
[329823596,1718705445985,-871.406982,0.00019898,2]
[329823598,1718705445994,-151.0,0.00019898,2]
[329823600,1718705446003,-1322.540314,0.00019898,2]
[329823602,1718705446013,-1322.540314,0.00019898,2]
[329823604,1718705446023,-505.885381,0.00019898,2]
[329823606,1718705446032,-505.885381,0.00019898,2]
[329823608,1718705446041,-151.0,0.00019898,2]
[329823610,1718705446052,-151.0,0.00019898,2]
[329823612,1718705446062,-151.0,0.00019898,2]
[329823614,1718705446071,-301.907644,0.00019898,2]
[329823616,1718705446080,-1147.72325,0.00019898,2]
[329823618,1718705446090,-1147.72325,0.00019898,2]
[329823620,1718705446100,-168.74529087,0.000199,2]
[329823622,1718705446110,-1205.42,0.00019951,2]
[329823624,1718705446120,-150.0,0.00019968,2]
[329823626,1718705446130,-485.83972917,0.0002,15]
[329823628,1718705446139,-297.06048776,0.0002,2]
[329823630,1718705446150,-1116.29745396,0.0002,2]
[329823632,1718705446159,-292.71417926,0.0002,2]
[329823634,1718705446169,-4165.79262619,0.0002,2]
[329823636,1718705446178,-67426.51586907,0.0002,2]
[329823639,1718705446188,-31907.21732781,0.0002,2]
[329823641,1718705446198,-151.0,0.0002,2]
[329823644,1718705446207,-186.787442,0.0002,2]
[329823646,1718705446217,-151.0,0.0002,2]
[329823648,1718705446226,-151.0,0.0002,2]
[329823650,1718705446235,-871.406982,0.0002,2]
[329823652,1718705446244,-871.406982,0.0002,2]
[329823654,1718705446254,-871.406982,0.0002,2]
[329823656,1718705446264,-871.406982,0.0002,2]
[329823658,1718705446273,-151.0,0.0002,2]
[329823660,1718705446282,-151.0,0.0002,2]
[329823662,1718705446292,-1322.540314,0.0002,2]
[329823664,1718705446301,-1322.540314,0.0002,2]
[329823666,1718705446311,-1322.540314,0.0002,2]
[329823668,1718705446320,-1322.540314,0.0002,2]
[329823670,1718705446329,-505.885381,0.0002,2]
[329823672,1718705446339,-505.885381,0.0002,2]
[329823674,1718705446348,-505.885381,0.0002,2]
[329823676,1718705446357,-505.885381,0.0002,2]
[329823678,1718705446366,-160.0,0.0002,2]
[329823680,1718705446376,-151.0,0.0002,2]
[329823681,1718705446385,-151.0,0.0002,2]
[329823683,1718705446395,-151.0,0.0002,2]
[329823685,1718705446405,-151.0,0.0002,2]
[329823687,1718705446414,-151.0,0.0002,2]
[329823688,1718705446423,-151.0,0.0002,2]
[329823689,1718705446432,-1147.72325,0.0002,2]
[329823690,1718705446441,-1147.72325,0.0002,2]
[329823691,1718705446450,-1147.72325,0.0002,2]
[329823692,1718705446459,-1147.72325,0.0002,2]
[329823693,1718705446467,-154.6,0.00020025,2]
[329823694,1718705446477,-539.95714706,0.00020051,2]
[329823695,1718705446486,-500.0,0.00020071,2]
[329823696,1718705446496,-259.290799,0.00020071,2]
[329823697,1718705446504,-871.406982,0.00020071,2]
[329823698,1718705446513,-871.406982,0.00020071,2]
[329823699,1718705446522,-1322.540314,0.00020071,2]
[329823700,1718705446531,-1322.540314,0.00020071,2]
[329823701,1718705446540,-505.885381,0.00020071,2]
[329823702,1718705446549,-505.885381,0.00020071,2]
[329823703,1718705446558,-151.0,0.00020071,2]
[329823704,1718705446566,-151.0,0.00020071,2]
[329823705,1718705446575,-151.0,0.00020071,2]